Cogmind - Beta 16.1 *** ADVENTURER MODE // 2026.02.15 @ 18:56:43 Player: Zable Result: Destroyed by WN-ODO(R) with Subdweller Beam Cannon Performance ------------- Evolutions (0) 0 Regions Visited (3) 600 Robots Destroyed (18) 90 Value Destroyed (504) 504 Prototype IDs (0) 0 Alien Tech Used (0) 0 Bonus (0) 0 TOTAL SCORE: 1194 Bonus ------- None Cogmind --------- Core Integrity 0/250 Matter 64/300 Energy 100/100 System Corruption 1% Temperature Cool (9) Movement Rolling (150) Ox4 Location -10/Subcaves Parts ------- > --- POWER (1) -------- (None) > --- PROPULSION (2) --- Subdweller Monowheel > --- UTILITY (2) ------ Huge Storage Unit Sensor Array > --- WEAPON (2) ------- (None) > --- INVENTORY (25) --- Ion Engine Light Nuclear Core Light Treads Aluminum Leg Sensor Array Improved Terrain Scanner Terrain Scan Processor Seismic Detector Mining Laser Peak State ------------ > --- POWER ------------ Light Nuclear Core > --- PROPULSION ------- Light Treads Wheel > --- UTILITY ---------- Huge Storage Unit Improved Terrain Scanner > --- WEAPON ----------- Small Laser Bore Cannon > --- INVENTORY -------- Ion Engine Light Nuclear Core Light Treads Aluminum Leg Sensor Array Sensor Array Seismic Detector EM Pulse Gun Mining Laser [Rating: 16] Favorites ----------- Power Light Nuclear Core Engine Ion Engine Power Core Light Nuclear Core Propulsion Wheel Treads Light Treads Leg Aluminum Leg Wheel Wheel Utility Huge Storage Unit Device Improved Terrain Scanner Storage Huge Storage Unit Weapon Small Laser Energy Gun Small Laser Ballistic Gun Light Assault Rifle Ballistic Cannon Bore Cannon Launcher Grenade Launcher Special Weapon Flamer Build | -11 -10 -10 -10 ------- Run | Yrd Mat Min Sub Slots Evolved . | . . . . Power . | . . . . Propulsion . | . . . . Utility . | . . . . Weapon . | . . . . Parts Attached 24 | 9 3 5 7 Power 3 | 1 1 1 . Engine 1 | 1 . . . Core 2 | . 1 1 . Reactor . | . . . . Propulsion 5 | 4 . . 1 Treads 1 | 1 . . . Leg 1 | 1 . . . Wheel 3 | 2 . . 1 Hover . | . . . . Flight . | . . . . Utility 6 | 2 1 1 2 Device 4 | 1 . 1 2 Storage 2 | 1 1 . . Processor . | . . . . Hackware . | . . . . Protection . | . . . . Artifact . | . . . . Weapon 10 | 2 1 3 4 Energy Gun 4 | 1 . 2 1 Energy Cannon . | . . . . Ballistic Gun 1 | 1 . . . Ballistic Cannon 1 | . . 1 . Launcher 1 | . 1 . . Special Weapon 3 | . . . 3 Impact Weapon . | . . . . Slashing Weapon . | . . . . Piercing Weapon . | . . . . Special Melee Weapon . | . . . . Unidentified Prototypes . | . . . . Parts Lost 11 | . . 3 8 Power 1 | . . . 1 Propulsion 3 | . . 1 2 Utility 1 | . . 1 . Weapon 6 | . . 1 5 Highest Loss Streak 4 | . . 2 4 To Critical Strikes . | . . . . Average Backups 9 | 4 7 9 9 Power 1 | . 1 1 2 Propulsion 2 | 2 3 2 2 Utility 3 | . 2 3 4 Weapon 1 | . 1 2 1 Tool/Special . | . . . . Unused Backups 6 | . 1 . 5 Power 1 | . . . 1 Propulsion 2 | . 1 . 1 Utility 3 | . . . 3 Weapon . | . . . . Tool/Special . | . . . . Average Slot Usage (%) 90 | . 100 84 92 Core 13 | . 10 14 13 Treads 10 | . 14 14 7 Wheel 14 | . 14 13 15 Device 8 | . 14 . 13 Storage 14 | . 14 14 14 Energy Gun 14 | . 6 22 10 Ballistic Gun 2 | . 14 3 . Ballistic Cannon 6 | . . 1 11 Launcher 1 | . 7 . . Special Weapon 2 | . . . 4 Peak Build Rating 16 | 9 11 16 16 Average Rating 11 | 5 10 9 14 On Entrance 9 | . 9 11 16 Avg Prop Armor Cover (%) 11 | 12 12 12 11 Naked Turns . | . . . . Heaviest Build 97 | 13 90 96 97 Greatest Support 30 | 10 10 10 30 Greatest Overweight (x) 9 | 1 8 9 9 Average Overweight (x) 6 | . 3 8 7 Largest Inventory Capacity 25 | 8 25 25 25 Average Capacity 23 | 7 17 25 25 Most Carried 10 | 6 9 10 10 Average Carried 9 | 4 7 9 9 Final Capacity 25 | 8 25 25 25 Final Carried 10 | 6 9 10 9 Class Distribution -------------------- 73% | Mutant 26% | Scavenger-Mutant Dominant Class ---------------- Mutant | -10/Materials Mutant | -10/Mines Scavenger-Mutant | -10/Subcaves Resources | -11 -10 -10 -10 ----------- Run | Yrd Mat Min Sub Matter Collected 620 | 189 108 203 120 Remotely . | . . . . Salvage Created 595 | 98 199 154 144 Parts 42 | 6 14 9 13 Haulers Intercepted . | . . . . Recyclers Shooed . | . . . . Parts Field Recycled . | . . . . Retrieved Matter . | . . . . Parts Self-Destructed 8 | . . . 8 Prevented . | . . . . Parts Restored . | . . . . Kills | -11 -10 -10 -10 ------- Run | Yrd Mat Min Sub Combat Hostiles Destroyed 19 | . 5 7 7 Guns 11 | . 4 5 2 Cannons 7 | . . 2 5 AOE 1 | . 1 . . Classes Destroyed 8 | 2 2 1 3 Tunneler 1 | 1 . . . Recycler 1 | 1 . . . Watcher 2 | . 2 . . Swarmer 3 | . . . 3 Grunt 7 | . 5 2 . Sentry 1 | . . . 1 Subdweller 3 | . . . 3 Assembled 5 | . . 5 . Best Kill Streak 3 | 2 3 3 3 Combat Bots Only 3 | . 3 3 3 Max Kills in Single Turn 1 | 1 1 1 1 Gunslinging . | . . . . Exploded 1 | . 1 . . Melee . | . . . . Uniques/NPCs Destroyed . | . . . . Combat | -11 -10 -10 -10 -------- Run | Yrd Mat Min Sub Hostile Shots Fired 120 | . 29 20 71 Missed 20 | . 4 2 14 Hits 100 | . 25 18 57 Melee 3 | . . 3 . Projectile 97 | . 25 15 57 Critical Strikes 3 | . 1 1 1 Damage Taken 1245 | 1 256 222 766 Core 255 | . 56 38 161 Absorbed by Shields . | . . . . Ignored by Resistances 367 | . 82 67 218 Core Remaining (%) 100 | 100 . . . Volleys Fired 99 | 6 23 23 47 Largest 2 | 2 2 2 2 Hottest 200 | 60 60 88 200 Shots Fired 163 | 12 40 32 79 Gun 102 | 12 34 27 29 Cannon 46 | . . 5 41 Launcher 6 | . 6 . . Special 9 | . . . 9 Kinetic 89 | 6 23 19 41 Thermal 55 | 6 11 9 29 Explosive 6 | . 6 . . Electromagnetic 13 | . . 4 9 Robot Hit Streak 20 | 10 13 20 8 Robot Miss Streak 3 | 2 1 2 3 Penetration Max 1 | . . . 1 Secondary Targets . | . . . . Shots Hit Robots 115 | 10 32 22 51 Core Hits 44 | 4 16 12 12 Critical Kills 5 | . . 2 3 Critical Parts Destroyed 5 | . . 1 4 Critical Strikes 17 | . . 3 14 Burn 1 | . . . 1 Destroy 16 | . . 3 13 Melee Attacks . | . . . . Impact . | . . . . Slashing . | . . . . Piercing . | . . . . Sneak Attacks . | . . . . Combat Hostiles . | . . . . Follow-up Attacks . | . . . . Damage Inflicted 1712 | 94 535 280 803 Guns 753 | 92 255 181 225 Cannons 575 | . . 99 476 Explosions 280 | . 280 . . Melee . | . . . . Ramming 2 | 2 . . . Kinetic 857 | 36 146 199 476 Thermal 506 | 56 109 69 272 Explosive 280 | . 280 . . Electromagnetic 67 | . . 12 55 Impact . | . . . . Slashing . | . . . . Piercing . | . . . . Highest Corruption 3 | . . 3 3 Average Corruption 2 | . . 3 2 Corruption Purged 2 | . . . 2 Corruption Blocked . | . . . . Effects 25 | . . . 25 Message Errors 4 | . . . 4 Matter Fused 4 | . . . 4 Heat Flow Errors 3 | . . . 3 Energy Discharges 5 | . . . 5 Parts Rejected 1 | . . . 1 Data Loss (minor) 3 | . . . 3 Data Loss (major) 1 | . . . 1 Misfires 2 | . . . 2 Alerts 2 | . . . 2 Overload Shots . | . . . . Overflow Damage 4 | . . . 4 Projectiles 4 | . . . 4 Explosions . | . . . . Melee . | . . . . Knockbacks 9 | . . 1 8 Impact . | . . . . Kinetic 9 | . . 1 8 Secondary . | . . . . Self-Inflicted Damage 30 | 1 29 . . Shots 3 | . 3 . . Rammed 1 | 1 . . . Targets Rammed 1 | 1 . . . Kicked . | . . . . Crushed . | . . . . Highest Temperature 259 | 20 100 132 259 Average Temperature 38 | 15 31 37 79 Received Heat Transfer 584 | . 183 146 255 Siege Activations . | . . . . Martial Activations . | . . . . Shielding Activations . | . . . . Robots Disrupted . | . . . . Combat Hostiles . | . . . . Robots Corrupted . | . . . . Combat Hostiles . | . . . . Parts Fried . | . . . . Impact Corruptions . | . . . . Robots Melted . | . . . . Combat Hostiles . | . . . . Parts Melted 1 | . 1 . . Heat Transferred 1475 | 125 250 150 950 Parts Sabotaged . | . . . . Parts Stolen . | . . . . Parts Stripped . | . . . . Power Chain Reactions . | . . . . Alert | -11 -10 -10 -10 ------- Run | Yrd Mat Min Sub Maximum Alert Level . | . . . . Low Security (%) 100 | 100 100 100 . Level 1 . | . . . . Level 2 . | . . . . Level 3 . | . . . . Level 4 . | . . . . Level 5 . | . . . . High Security . | . . . . Max Security . | . . . . Peak Influence 94 | 5 94 40 . Initial 18 | . . 18 . Average 9 | . 34 2 . Influence Increases 424 | 10 177 52 185 Destroy 0b10 Robot/C 220 | . 100 40 80 Destroy 0b10 Robot/NC 20 | 10 10 . . Destroy Leader 34 | . 24 10 . Successful Hack 12 | . 12 . . Destroy Structure 33 | . 31 2 . Lose Combat Pursuer 105 | . . . 105 Influence Decreases 424 | 10 119 110 185 Entered New Map 40 | . . 40 . Time Decay 330 | 10 119 51 150 Lost Part 54 | . . 19 35 Squads Dispatched 2 | . 2 . . Investigation 2 | . 2 . . Extermination . | . . . . Reinforcement . | . . . . Assault . | . . . . Garrison . | . . . . Intercept . | . . . . Searches Triggered . | . . . . Construction Impeded . | . . . . Haulers Reinforced . | . . . . Active Scanning Responses . | . . . . Cargo Convoy Interrupts . | . . . . Stealth | -11 -10 -10 -10 --------- Run | Yrd Mat Min Sub Distress Signals 2 | . 1 1 . Communications Jammed . | . . . . Distress Signals . | . . . . Times Spotted 49 | . 8 25 16 Peak Tracking Total 21 | . 3 21 5 Tactical Retreats 5 | . . 2 3 Traps | -11 -10 -10 -10 ------- Run | Yrd Mat Min Sub Traps Triggered 1 | . 1 . . Indirectly . | . . . . Trap Hack Attempts . | . . . . Triggered . | . . . . Disarmed . | . . . . Reprogrammed . | . . . . Reused . | . . . . Traps Extracted . | . . . . Installed . | . . . . Triggered . | . . . . Machines | -11 -10 -10 -10 ---------- Run | Yrd Mat Min Sub Machines Disabled . | . . . . Max in Single Turn . | . . . . Machines Repaired . | . . . . Machines Dismantled . | . . . . Machines Sabotaged . | . . . . Overloaded Fab Kills . | . . . . Hacking | -11 -10 -10 -10 --------- Run | Yrd Mat Min Sub Machines Accessed 3 | . 3 . . Terminals 3 | . 3 . . Fabricators . | . . . . Repair Stations . | . . . . Recycling Units . | . . . . Scanalyzers . | . . . . Garrison Access . | . . . . Total Hacks 9 | . 9 . . Successful 3 | . 3 . . Failed 6 | . 6 . . Catastrophic 1 | . 1 . . Database Lockouts . | . . . . Manual 9 | . 9 . . Terminals 9 | . 9 . . Fabricators . | . . . . Repair Stations . | . . . . Recycling Units . | . . . . Scanalyzers . | . . . . Garrison Access . | . . . . Terminal Hacks 1 | . 1 . . Terminal Index 1 | . 1 . . Fabricator Hacks . | . . . . Repair Station Hacks . | . . . . Recycling Unit Hacks . | . . . . Scanalyzer . | . . . . Garrison Access Hacks . | . . . . Unauthorized Hacks 2 | . 2 . . Terminals 2 | . 2 . . Botnet 2 | . 2 . . Fabricators . | . . . . Repair Stations . | . . . . Recycling Units . | . . . . Scanalyzers . | . . . . Garrison Access . | . . . . Data Cores Recovered . | . . . . Used . | . . . . Hacking Detections 3 | . 3 . . Full Trace Events 1 | . 1 . . Feedback Events . | . . . . Feedback Blocked . | . . . . Robot Schematics Acquired . | . . . . Robots Built . | . . . . Authchips . | . . . . Time . | . . . . Total Robot Build Rating . | . . . . Part Schematics Acquired . | . . . . Parts Built . | . . . . Authchips . | . . . . Time . | . . . . Total Part Build Rating . | . . . . Part Studies Acquired . | . . . . Parts Repaired . | . . . . Time . | . . . . Parts Recycled . | . . . . Recycled Matter . | . . . . Retrieved Matter . | . . . . Retrieved Components . | . . . . Parts Scanalyzed . | . . . . Part Schematics Acquired . | . . . . Parts Damaged . | . . . . Bothacking | -11 -10 -10 -10 ------------ Run | Yrd Mat Min Sub Used RIF Installer . | . . . . Robots Hacked . | . . . . Non-combat . | . . . . Combat . | . . . . Robot Hacks Applied . | . . . . Relay Couplers Released . | . . . . Fabnet Peak Effective % . | . . . . Robots Rewired . | . . . . Allies Hacked . | . . . . Hacks Repelled . | . . . . Allies | -11 -10 -10 -10 -------- Run | Yrd Mat Min Sub Total Allies . | . . . . Largest Group . | . . . . Highest-Rated Group . | . . . . Highest-Rated Ally . | . . . . Total Orders . | . . . . Ally Attacks . | . . . . Total Damage . | . . . . Kills . | . . . . Allies Corrupted . | . . . . Allies Melted . | . . . . Intel | -11 -10 -10 -10 ------- Run | Yrd Mat Min Sub Active Infowar (turns) 1534 | 19 314 25 1176 Sensors 110 | . . . 110 Terrain 1424 | 19 314 25 1066 Robot Analysis Total . | . . . . Derelict Logs Recovered 5 | . . 3 2 Drone Launches . | . . . . Drone Recoveries . | . . . . Exploration | -11 -10 -10 -10 ------------- Run | Yrd Mat Min Sub Turns Passed 2593 | 112 314 921 1246 Spaces Moved 1184 | 69 167 392 556 Core 7 | 7 . . . Treads . | . . . . Legs 8 | 8 . . . Wheels 1169 | 54 167 392 556 Hover . | . . . . Flight . | . . . . Fastest Speed 50 | 50 95 200 119 Average Speed 182 | 99 139 202 192 Slowest Speed 215 | 190 200 215 215 Overloaded Moves . | . . . . Propulsion Burnouts . | . . . . Robots Hopped . | . . . . Potential Cave-ins . | . . . . Cave-ins Triggered . | . . . . Exploration Rate (%) 44 | 5 38 93 41 Regions Visited 3 Branch Regions 2 Pre-discovered Areas 3 | . . 3 . Known Exits Taken . | . . . . Unknown Exits Taken 3 | 1 1 1 . Scrap Searched 2 | . . 2 . Spaces Dug . | . . . . Terrain Destroyed 45 | . 27 3 15 Melee . | . . . . Projectile 18 | . . 3 15 AOE 27 | . 27 . . Terrain Rammed . | . . . . Walls Destroyed . | . . . . Machines Disabled . | . . . . Actions | -11 -10 -10 -10 --------- Run | Yrd Mat Min Sub Total 1439 | 97 214 491 637 Wait 113 | 7 15 68 23 Move 1181 | 68 166 391 556 Hop . | . . . . Pick Up 12 | 6 4 1 1 Fast Attach 15 | 7 . 4 4 Attach 4 | . . 1 3 Detach 1 | . . . 1 Swap 7 | 2 3 1 1 Drop 6 | . 3 2 1 Fire 99 | 6 23 23 47 Melee . | . . . . Ram 1 | 1 . . . Kick . | . . . . Crush . | . . . . Escape Stasis . | . . . . Rewire . | . . . . Trap . | . . . . Miscellaneous . | . . . . Route ------- -11/Scrapyard -10/Materials -10/Mines (discovered 2 exits: [*Mat] / [*Sub]) -10/Subcaves (discovered 2 exits: [*Mat] / [*Rec]) History --------- Turn | Location | Event 18 | -11/Scrapyard | Discovered new exit (range 16) 113 | -11/Scrapyard | Entered Materials 318 | -10/Materials | Build established: Mutant 362 | -10/Materials | Discovered new exit (range 11) 427 | -10/Materials | Entered Mines 542 | -10/Mines | Learned location of Zion (-7) 767 | -10/Mines | Assembled infested the area 772 | -10/Mines | Assisted by a Guerilla fighting off Assembled 1042 | -10/Mines | Learned location of Mines (-9) 1309 | -10/Mines | Discovered new exit (range 16) 1320 | -10/Mines | Discovered new exit (range 7) 1348 | -10/Mines | Entered Subcaves 1359 | -10/Subcaves | Learned Materials emergency access door positions 1427 | -10/Subcaves | Learned Materials garrison access intel 1457 | -10/Subcaves | Discovered new exit (range 10) 1611 | -10/Subcaves | Build established: Scavenger-Mutant 2001 | -10/Subcaves | Core integrity fell below 50% 2309 | -10/Subcaves | Build established: Mutant 2340 | -10/Subcaves | Discovered new exit (range 11) 2584 | -10/Subcaves | Core integrity fell below 20% 2594 | -10/Subcaves | Destroyed by WN-ODO(R) with Subdweller Beam Cannon Last Messages --------------- 02341_ Lgt. Ion Engine fries itself beyond repair. 02353_ WR-8BK(u) tweaks Twisted Machinery. 02378_ System corrupted: Heat flow error (+140). 02406_ Acquired Sub. Monowheel. 02416_ System corrupted: Component data lost. 02429_ Acquired Mak. System Restoration Module. 02431_ Acquired Imp. Terrain Scanner. 02435_ Mak. System Restoration Module purges 1% system corruption (2%). 02453_ Acquired Flamer. 02454_ Mak. System Restoration Module purges 1% system corruption (1%). 02465_ Acquired Flamer. 02484_ Discarded Mak. System Restoration Module. 02518_ 2CMATINL3JER9VF6JGB 1 GYPROXZ 02564_ Lgt. Nuclear Core destroyed. 02573_ Flamer destroyed. 02578_ WN-ODO(R) suffers critical hit (Burn). 02579_ Wheel destroyed. 02579_ WN-ODO(R) overheating. 02580_ Flamer destroyed. 02591_ PR-MCS(z): "She is not going to be happy we haven't found any suitable candidates yet." Map ----- +----------------------------------------------------+ | ?????????????????????????????????????????????????? | | ?????????????????????????????????????????????????? | | ?????????????????????????????????????????????????? | | ?????????????????????????????????????????????????? | | ?????????????????????????????????????????????????? | | ?????????????????????????????????????????????????? | | ?????????????????????????????????????????????????? | | ?????????????????????????????????????????????????? | | ?????????????????????????????????????????????????? | | ?????????????????????????????????????????????????? | | ?????????????????????????????????????????????????? | | ?????????????????????????????????????????????????? | | ?????????????????????????????????????????????????? | | ?????????????????????????????????????????????????? | | ???????????????????????#####??????????????#??????? | | ???????????????????????# #?????????????# ?????? | | ??????????????????? ?# #????????????# ???? | | ??????????????????? ## ##??????????# ???? | | ???????????????????? #????????## ??? | | ????????????????????? ##??????## ???? | | ?????????????????????? #???#### ????? | | ???????????????????????# ????# ?????? | | ????????????"?""????????# #???## ???????? | | ????????????""" #??###??# ##### #??????### | | ????????????"" ""### ##?# #????### # | | ?????????????""""" #?#@ ###### | | ??????????????# #?# # | | ??????????????# #?# | | ????????????????? ###R #### # | | ???????????????????# ##R ##?# ### # ## ## | | ???????????????????# #?# #?### #? | | ???????????????????## # ### ## | | ????????????????????## ### ## ## # | | ????????????????????## ########### ## | | ????????????????????# #???###??# # ## | | #???????????????????# ### #??### ##### | | "???????????#??????# ##???# #???# | | "??????????????????## #???### ###### | | ???????????????????# ##????## ### | | "" ?????????????????# ## ##????## ## | | """??????????##????? ##?####????## # | | ""?? ???????<#??#### ###???????## | | ????????""" """"#?## ?????????# | | ?????#?" " " "#??# ????????#### | | ##??????" "#??## ???#??????## | | #??????? ###?#####?#?#???????###### | | ##?#???? ?????###?????????????????## | | ##?#???? ??????# ##????????#??????## | | #?####### ###?##??#" #######????#????# | | " ### # """" ##?#??#""" ## ###???????# | +----------------------------------------------------+ Best States ------------- Heat Dissipation 25 Energy Generation 14 Energy Capacity 250 Matter Stores 300 Matter Capacity 300 Sight Range 16 Robot Scan Range 14 Terrain Scan Range 16 Terrain Scan Density 10 Resistance: KI 20 Resistance: TH 20 Resistance: EX 20 Resistance: EM 20 Resistance: I 20 Resistance: S 20 Resistance: P 20 Evasion (%) 50 Offensive Hacking 10 Item Schematics ----------------- None Robot Schematics ------------------ None Fabricated ------------ Nothing Repaired ---------- Nothing Studied --------- None Alien Tech Used ----------------- None Achievements -------------- Hunted Slippery One Challenges ------------ None Game ------ Seed ZeronetNovaMagmablaster Manual? 0 Play Time 00:19:00 Cumulative 23.9 hours Start 2026.02.15 @ 18:13:25 End 2026.02.15 @ 18:56:43 Sessions 2 Manual Loads 0 Difficulty Adventurer Special Mode None Game No. 29 Rogue 17 Adventurer 12 Explorer 0 Win Type - Total 0 Types 0/0/0/0/0/0/0/0/0/0 Lore% 11 Gallery% 26 Achievement% 16 Wizard Run 0 Options --------- Layout 0 ASCII 0 Keyboard 0 Movement Mouse Keybinds 0 Fullscreen 1 Font 24/Terminus Map View 183x50 Zoom Use 0% Tactical HUD 1 Map Filters NONE Filters NONE Steam 1 RUN: c591bc15-1973-4b01-8bf0-84e7aeaf9f15